Workbook

Sheet Sheet1
A1: 2018年硕士研究生复试成绩公示
A2: 姓名 | B2: 考生编号 | C2: 性别 | D2: 初试总分 | E2: 初试总分/5*60% | F2: 复试成绩 | G2: 复试成绩*40% | H2: 总成绩
A3: 黄文涛 | B3: 103078020182944 | C3: 男 | D3: 364 | E3: =D3/5*60% -> 43.68 | F3: 88.00 | G3: =F3*40% -> 35.20 | H3: =E3+G3 -> 78.88
A4: 黄前静 | B4: 110598340100028 | C4: 女 | D4: 365 | E4: =D4/5*60% -> 43.80 | F4: 84.30 | G4: =F4*40% -> 33.72 | H4: =E4+G4 -> 77.52
A5: 王鹏程 | B5: 103598210007158 | C5: 男 | D5: 346 | E5: =D5/5*60% -> 41.52 | F5: 89.30 | G5: =F5*40% -> 35.72 | H5: =E5+G5 -> 77.24
A6: 张典雅 | B6: 110598340100006 | C6: 女 | D6: 328 | E6: =D6/5*60% -> 39.36 | F6: 87.00 | G6: =F6*40% -> 34.80 | H6: =E6+G6 -> 74.16
A7: 余紫燃 | B7: 102958210606270 | C7: 女 | D7: 317 | E7: =D7/5*60% -> 38.04 | F7: 88.00 | G7: =F7*40% -> 35.20 | H7: =E7+G7 -> 73.24
A8: 苏凡 | B8: 103008210701682 | C8: 男 | D8: 312 | E8: =D8/5*60% -> 37.44 | F8: 89.00 | G8: =F8*40% -> 35.60 | H8: =E8+G8 -> 73.04
A9: 韩宣宣 | B9: 103578210011386 | C9: 男 | D9: 324 | E9: =D9/5*60% -> 38.88 | F9: 84.70 | G9: =F9*40% -> 33.88 | H9: =E9+G9 -> 72.76
A10: 刘义 | B10: 110598340100044 | C10: 男 | D10: 310 | E10: =D10/5*60% -> 37.20 | F10: 88.70 | G10: =F10*40% -> 35.48 | H10: =E10+G10 -> 72.68
A11: 王凤侠 | B11: 110598340100037 | C11: 女 | D11: 328 | E11: =D11/5*60% -> 39.36 | F11: 82.30 | G11: =F11*40% -> 32.92 | H11: =E11+G11 -> 72.28
A12: 吴荒原 | B12: 110598340100029 | C12: 男 | D12: 320 | E12: =D12/5*60% -> 38.40 | F12: 84.00 | G12: =F12*40% -> 33.60 | H12: =E12+G12 -> 72.00
A13: 黄永凤 | B13: 110598340100014 | C13: 女 | D13: 325 | E13: =D13/5*60% -> 39.00 | F13: 82.30 | G13: =F13*40% -> 32.92 | H13: =E13+G13 -> 71.92
A14: 刘壮 | B14: 110598340100012 | C14: 男 | D14: 318 | E14: =D14/5*60% -> 38.16 | F14: 84.00 | G14: =F14*40% -> 33.60 | H14: =E14+G14 -> 71.76
A15: 夏赛 | B15: 103008210701692 | C15: 男 | D15: 317 | E15: =D15/5*60% -> 38.04 | F15: 83.70 | G15: =F15*40% -> 33.48 | H15: =E15+G15 -> 71.52
A16: 张淳 | B16: 110598340100027 | C16: 男 | D16: 314 | E16: =D16/5*60% -> 37.68 | F16: 84.00 | G16: =F16*40% -> 33.60 | H16: =E16+G16 -> 71.28
A17: 龚方旭 | B17: 102528210002272 | C17: 男 | D17: 316 | E17: =D17/5*60% -> 37.92 | F17: 83.00 | G17: =F17*40% -> 33.20 | H17: =E17+G17 -> 71.12
A18: 邢彤 | B18: 105908765405791 | C18: 男 | D18: 311 | E18: =D18/5*60% -> 37.32 | F18: 83.70 | G18: =F18*40% -> 33.48 | H18: =E18+G18 -> 70.80
A19: 李茂龙 | B19: 102998210803208 | C19: 男 | D19: 302 | E19: =D19/5*60% -> 36.24 | F19: 85.30 | G19: =F19*40% -> 34.12 | H19: =E19+G19 -> 70.36
A20: 汪浩 | B20: 102998210105778 | C20: 男 | D20: 306 | E20: =D20/5*60% -> 36.72 | F20: 84.00 | G20: =F20*40% -> 33.60 | H20: =E20+G20 -> 70.32
A21: 蒋迪 | B21: 110598340100005 | C21: 男 | D21: 298 | E21: =D21/5*60% -> 35.76 | F21: 86.00 | G21: =F21*40% -> 34.40 | H21: =E21+G21 -> 70.16
A22: 李健 | B22: 110598340100033 | C22: 男 | D22: 287 | E22: =D22/5*60% -> 34.44 | F22: 88.70 | G22: =F22*40% -> 35.48 | H22: =E22+G22 -> 69.92
A23: 陈奕桦 | B23: 110598340100002 | C23: 男 | D23: 282 | E23: =D23/5*60% -> 33.84 | F23: 90.00 | G23: =F23*40% -> 36.00 | H23: =E23+G23 -> 69.84
A24: 朱磊 | B24: 103078020182550 | C24: 男 | D24: 305 | E24: =D24/5*60% -> 36.60 | F24: 83.00 | G24: =F24*40% -> 33.20 | H24: =E24+G24 -> 69.80
A25: 石永杰 | B25: 103008210701680 | C25: 男 | D25: 307 | E25: =D25/5*60% -> 36.84 | F25: 80.70 | G25: =F25*40% -> 32.28 | H25: =E25+G25 -> 69.12
A26: 冯雪梅 | B26: 103578210011364 | C26: 女 | D26: 289 | E26: =D26/5*60% -> 34.68 | F26: 86.00 | G26: =F26*40% -> 34.40 | H26: =E26+G26 -> 69.08
A27: 胡俊俊 | B27: 103598210007795 | C27: 女 | D27: 287 | E27: =D27/5*60% -> 34.44 | F27: 86.00 | G27: =F27*40% -> 34.40 | H27: =E27+G27 -> 68.84
A28: 王媚 | B28: 103598210007948 | C28: 女 | D28: 278 | E28: =D28/5*60% -> 33.36 | F28: 88.70 | G28: =F28*40% -> 35.48 | H28: =E28+G28 -> 68.84
A29: 方勤翔 | B29: 102518210005704 | C29: 男 | D29: 279 | E29: =D29/5*60% -> 33.48 | F29: 88.30 | G29: =F29*40% -> 35.32 | H29: =E29+G29 -> 68.80
A30: 徐佳 | B30: 102918210204232 | C30: 女 | D30: 281 | E30: =D30/5*60% -> 33.72 | F30: 87.30 | G30: =F30*40% -> 34.92 | H30: =E30+G30 -> 68.64
A31: 邓锐 | B31: 102808210011392 | C31: 男 | D31: 299 | E31: =D31/5*60% -> 35.88 | F31: 81.30 | G31: =F31*40% -> 32.52 | H31: =E31+G31 -> 68.40
A32: 高慧敏 | B32: 103578210011514 | C32: 女 | D32: 280 | E32: =D32/5*60% -> 33.60 | F32: 87.00 | G32: =F32*40% -> 34.80 | H32: =E32+G32 -> 68.40
A33: 杜亭 | B33: 110598340100007 | C33: 女 | D33: 296 | E33: =D33/5*60% -> 35.52 | F33: 82.00 | G33: =F33*40% -> 32.80 | H33: =E33+G33 -> 68.32
A34: 吉宇尘 | B34: 103598210007851 | C34: 男 | D34: 269 | E34: =D34/5*60% -> 32.28 | F34: 89.70 | G34: =F34*40% -> 35.88 | H34: =E34+G34 -> 68.16
A35: 王啟浩 | B35: 103578210011444 | C35: 男 | D35: 292 | E35: =D35/5*60% -> 35.04 | F35: 82.70 | G35: =F35*40% -> 33.08 | H35: =E35+G35 -> 68.12
A36: 杨佳琪 | B36: 102888500008731 | C36: 女 | D36: 294 | E36: =D36/5*60% -> 35.28 | F36: 82.00 | G36: =F36*40% -> 32.80 | H36: =E36+G36 -> 68.08
A37: 原治坤 | B37: 107038114113722 | C37: 男 | D37: 287 | E37: =D37/5*60% -> 34.44 | F37: 84.00 | G37: =F37*40% -> 33.60 | H37: =E37+G37 -> 68.04
A38: 卫尤文 | B38: 103598210007744 | C38: 男 | D38: 283 | E38: =D38/5*60% -> 33.96 | F38: 83.70 | G38: =F38*40% -> 33.48 | H38: =E38+G38 -> 67.44
A39: 杨振宇 | B39: 103578210011531 | C39: 男 | D39: 273 | E39: =D39/5*60% -> 32.76 | F39: 86.60 | G39: =F39*40% -> 34.64 | H39: =E39+G39 -> 67.40
A40: 都烨 | B40: 102888100001670 | C40: 男 | D40: 278 | E40: =D40/5*60% -> 33.36 | F40: 84.30 | G40: =F40*40% -> 33.72 | H40: =E40+G40 -> 67.08
A41: 陈敏 | B41: 103598210006211 | C41: 女 | D41: 281 | E41: =D41/5*60% -> 33.72 | F41: 82.70 | G41: =F41*40% -> 33.08 | H41: =E41+G41 -> 66.80
A42: 程丽君 | B42: 103598210007892 | C42: 女 | D42: 281 | E42: =D42/5*60% -> 33.72 | F42: 82.30 | G42: =F42*40% -> 32.92 | H42: =E42+G42 -> 66.64
A43: 杨淑君 | B43: 103598210006304 | C43: 女 | D43: 275 | E43: =D43/5*60% -> 33.00 | F43: 84.00 | G43: =F43*40% -> 33.60 | H43: =E43+G43 -> 66.60
A44: 顾语然 | B44: 110598340100035 | C44: 男 | D44: 264 | E44: =D44/5*60% -> 31.68 | F44: 87.00 | G44: =F44*40% -> 34.80 | H44: =E44+G44 -> 66.48
A45: 张立冬 | B45: 110598340100004 | C45: 男 | D45: 278 | E45: =D45/5*60% -> 33.36 | F45: 82.70 | G45: =F45*40% -> 33.08 | H45: =E45+G45 -> 66.44
A46: 丁同悦 | B46: 103378210005511 | C46: 女 | D46: 266 | E46: =D46/5*60% -> 31.92 | F46: 86.00 | G46: =F46*40% -> 34.40 | H46: =E46+G46 -> 66.32
A47: 李银涛 | B47: 102958211406910 | C47: 男 | D47: 262 | E47: =D47/5*60% -> 31.44 | F47: 85.30 | G47: =F47*40% -> 34.12 | H47: =E47+G47 -> 65.56
A48: 武德伟 | B48: 104238142110721 | C48: 男 | D48: 266 | E48: =D48/5*60% -> 31.92 | F48: 84.00 | G48: =F48*40% -> 33.60 | H48: =E48+G48 -> 65.52
A49: 曹子昊 | B49: 102938210403431 | C49: 男 | D49: 277 | E49: =D49/5*60% -> 33.24 | F49: 80.70 | G49: =F49*40% -> 32.28 | H49: =E49+G49 -> 65.52
A50: 鲁晓峰 | B50: 103578210011969 | C50: 男 | D50: 279 | E50: =D50/5*60% -> 33.48 | F50: 80.00 | G50: =F50*40% -> 32.00 | H50: =E50+G50 -> 65.48
A51: 朱雷 | B51: 103598210002502 | C51: 男 | D51: 264 | E51: =D51/5*60% -> 31.68 | F51: 84.30 | G51: =F51*40% -> 33.72 | H51: =E51+G51 -> 65.40
A52: 李剑波 | B52: 110598340100025 | C52: 男 | D52: 267 | E52: =D52/5*60% -> 32.04 | F52: 83.00 | G52: =F52*40% -> 33.20 | H52: =E52+G52 -> 65.24
A53: 柳同军 | B53: 103578210012380 | C53: 男 | D53: 290 | E53: =D53/5*60% -> 34.80 | F53: 76.00 | G53: =F53*40% -> 30.40 | H53: =E53+G53 -> 65.20
A54: 陆冰洁 | B54: 103598210007821 | C54: 女 | D54: 263 | E54: =D54/5*60% -> 31.56 | F54: 84.00 | G54: =F54*40% -> 33.60 | H54: =E54+G54 -> 65.16
A55: 陈金计 | B55: 102528210001994 | C55: 男 | D55: 268 | E55: =D55/5*60% -> 32.16 | F55: 82.00 | G55: =F55*40% -> 32.80 | H55: =E55+G55 -> 64.96
A56: 梁远远 | B56: 103598210008025 | C56: 女 | D56: 278 | E56: =D56/5*60% -> 33.36 | F56: 79.00 | G56: =F56*40% -> 31.60 | H56: =E56+G56 -> 64.96
A57: 谢亨 | B57: 103598210007797 | C57: 男 | D57: 275 | E57: =D57/5*60% -> 33.00 | F57: 79.70 | G57: =F57*40% -> 31.88 | H57: =E57+G57 -> 64.88
A58: 张迎春 | B58: 105328321101407 | C58: 男 | D58: 276 | E58: =D58/5*60% -> 33.12 | F58: 79.00 | G58: =F58*40% -> 31.60 | H58: =E58+G58 -> 64.72
A59: 程谦 | B59: 103588210000634 | C59: 男 | D59: 266 | E59: =D59/5*60% -> 31.92 | F59: 81.70 | G59: =F59*40% -> 32.68 | H59: =E59+G59 -> 64.60
A60: 邵凌波 | B60: 107008034054179 | C60: 女 | D60: 280 | E60: =D60/5*60% -> 33.60 | F60: 77.00 | G60: =F60*40% -> 30.80 | H60: =E60+G60 -> 64.40
A61: 陈敏 | B61: 102518210006226 | C61: 女 | D61: 268 | E61: =D61/5*60% -> 32.16 | F61: 80.00 | G61: =F61*40% -> 32.00 | H61: =E61+G61 -> 64.16
A62: 王皓 | B62: 102958211406800 | C62: 男 | D62: 261 | E62: =D62/5*60% -> 31.32 | F62: 81.00 | G62: =F62*40% -> 32.40 | H62: =E62+G62 -> 63.72
A63: 涂杰 | B63: 103598210007254 | C63: 男 | D63: 284 | E63: =D63/5*60% -> 34.08 | F63: 74.00 | G63: =F63*40% -> 29.60 | H63: =E63+G63 -> 63.68
A64: 张茜茜 | B64: 103598210007828 | C64: 女 | D64: 262 | E64: =D64/5*60% -> 31.44 | F64: 80.30 | G64: =F64*40% -> 32.12 | H64: =E64+G64 -> 63.56
